bitfinex/quotes_SOLUSD_20250529
["timestamp","ask_amount","ask_price","bid_price","bid_amount"]
[1748538132382,35.42541276,168.45,168.43,10.56]
[1748538132684,62.88634972,168.46,168.43,10.56]
[1748538132882,27.46093696,168.46,168.43,10.56]
[1748538133103,35.42541276,168.44,168.43,10.56]
[1748538133574,35.42541276,168.44,168.38,10.56]
[1748538133761,35.42541276,168.41,168.38,10.56]
[1748538133956,53.46093696,168.46,168.38,10.56]
[1748538133957,35.42541276,168.4,168.38,10.56]
[1748538134159,41.36400768,168.39,168.38,10.56]
[1748538134373,5.93859492,168.39,168.38,10.56]
[1748538134568,41.36400768,168.39,168.34,0.28432314]
[1748538134776,35.42541276,168.38,168.33,45.98541276]
[1748538135264,41.36400768,168.39,168.34,35.7097359]
[1748538135767,35.42541276,168.42,168.38,35.42541276]
[1748538135970,41.36259734,168.43,168.38,35.42541276]
[1748538137005,35.42541276,168.4,168.34,92.82154633]
[1748538137302,35.42541276,168.39,168.34,35.42541276]
[1748538138069,41.36436037,168.38,168.33,10.56]
[1748538138265,41.36436037,168.38,168.33,45.98541276]
[1748538138690,5.93894761,168.38,168.34,35.42541276]
[1748538140704,5.93894761,168.38,168.35,35.42541276]
[1748538141007,5.93894761,168.38,168.33,10.56]
[1748538141212,35.42541276,168.37,168.33,10.56]
[1748538141495,5.93894761,168.38,168.33,10.56]
[1748538141496,35.42541276,168.35,168.33,10.56]
[1748538141696,35.42541276,168.36,168.33,10.56]
[1748538141868,21.6479409,168.36,168.33,10.56]
[1748538142275,5.93991007,168.36,168.33,10.56]
[1748538142489,5.93991007,168.36,168.33,32.2079409]
[1748538143086,21.6479409,168.38,168.33,32.2079409]
[1748538143291,38.26,168.39,168.35,21.6479409]
[1748538143495,5.93833114,168.4,168.38,21.6479409]
[1748538143686,47.6479409,168.42,168.38,21.6479409]
[1748538143687,5.93798068,168.41,168.38,21.6479409]
[1748538143882,5.93755514,168.42,168.39,21.6479409]
[1748538144088,5.93755514,168.42,168.39,35.24852761]
[1748538144275,5.93718458,168.43,168.39,35.24852761]
[1748538145313,5.93718458,168.43,168.4,35.24852761]
[1748538145475,12.62068673,168.46,168.41,35.24852761]
[1748538145676,6.68424064,168.46,168.43,35.24852761]
[1748538145904,6.68424064,168.46,168.4,18.79181043]
[1748538145905,6.68424064,168.46,168.44,35.24852761]
[1748538146201,6.68424064,168.46,168.45,35.24852761]
[1748538147392,6.68424064,168.46,168.45,54.32466118]
[1748538147586,6.68424064,168.46,168.45,64.84466118]
[1748538148185,6.68424064,168.46,168.45,70.78114084]
[1748538150396,6.68424064,168.46,168.45,29.59613357]
[1748538150596,6.68424064,168.46,168.45,64.84466118]
[1748538152212,6.68424064,168.46,168.45,45.76852761]
[1748538153305,6.68424064,168.46,168.45,70.78114084]
[1748538154905,6.68424064,168.46,168.45,64.84466118]
[1748538155218,6.68424064,168.46,168.45,10.52]
[1748538155411,6.68424064,168.46,168.41,10.52]
[1748538155412,47.86889552,168.46,168.41,10.52]
[1748538155617,47.86889552,168.46,168.41,45.76852761]
[1748538155913,47.86889552,168.46,168.42,35.24852761]
[1748538156617,47.86889552,168.46,168.41,45.76852761]
[1748538156917,12.62036791,168.46,168.42,35.24852761]
[1748538157121,12.62036791,168.46,168.43,35.24852761]
[1748538157288,12.62036791,168.46,168.42,35.24852761]
[1748538157488,47.86889552,168.46,168.42,35.24852761]
[1748538157724,35.24852761,168.44,168.41,10.52]
[1748538158322,12.62036791,168.46,168.43,35.24852761]
[1748538158822,12.62036791,168.46,168.42,35.24852761]
[1748538158986,47.86889552,168.46,168.41,45.76852761]
[1748538159302,35.24852761,168.45,168.41,10.52]
[1748538159807,35.24852761,168.45,168.4,35.24852761]
[1748538160116,5.9368321,168.44,168.4,35.24852761]
[1748538160327,12.62064775,168.46,168.42,35.24852761]
[1748538160518,47.86917536,168.46,168.42,35.24852761]
[1748538160999,47.86917536,168.46,168.39,12.2343399]
[1748538161000,12.62040963,168.46,168.43,35.24852761]
[1748538161196,47.86893724,168.46,168.42,35.24852761]
[1748538161519,47.86893724,168.46,168.41,35.24852761]
[1748538162099,12.62040963,168.46,168.41,35.24852761]
[1748538162416,47.86893724,168.46,168.41,35.24852761]
[1748538162602,12.62040963,168.46,168.41,35.24852761]
[1748538162797,6.68424064,168.46,168.43,35.24852761]
[1748538162997,6.68424064,168.46,168.44,35.24852761]
[1748538163306,12.62052333,168.46,168.43,35.24852761]
[1748538163692,6.68424064,168.46,168.45,35.24852761]
[1748538163892,6.68424064,168.46,168.45,35.53285075]
[1748538164818,6.68424064,168.46,168.45,0.28432314]
[1748538165193,6.68424064,168.46,168.45,35.53285075]
[1748538165531,12.62036791,168.46,168.44,10.52]
[1748538165705,6.68424064,168.46,168.44,45.76852761]
[1748538166093,6.68424064,168.46,168.45,35.24852761]
[1748538167394,6.68424064,168.46,168.45,35.53285075]
[1748538168117,5.93551,168.48,168.45,35.53285075]
[1748538168321,5.93551,168.48,168.46,35.24852761]
[1748538168498,5.93507033,168.49,168.46,35.24852761]
[1748538168704,5.93507033,168.49,168.45,35.53285075]
[1748538170029,5.93507033,168.49,168.46,35.24852761]
[1748538171328,5.93483439,168.5,168.47,35.24852761]
[1748538172007,5.93483439,168.5,168.47,21.60824141]
[1748538172741,5.93449582,168.51,168.49,21.60824141]
[1748538173734,5.93366166,168.53,168.49,21.60824141]
[1748538173935,14.83219487,168.56,168.49,0.14216157]
[1748538174146,74.26043628,168.56,168.51,21.60824141]
[1748538174438,2.6524,168.61,168.49,0.14216157]
[1748538174439,14.82965373,168.59,168.54,21.60824141]
[1748538174604,11.95,168.55,168.5,36.52]
[1748538174802,5.93190176,168.58,168.54,21.60824141]
[1748538175007,5.93190176,168.58,168.55,21.60824141]
[1748538175331,5.93190176,168.58,168.54,21.60824141]
[1748538175704,21.60824141,168.57,168.53,21.60824141]
[1748538175906,5.9326056,168.56,168.53,21.60824141]
[1748538176213,21.60824141,168.54,168.5,10.52]
[1748538176405,21.60824141,168.53,168.5,10.52]
[1748538177028,21.60824141,168.51,168.45,10.28]
[1748538177223,21.60824141,168.5,168.45,31.88824141]
[1748538177554,32.0873,168.55,168.45,31.88824141]
[1748538177555,21.60824141,168.49,168.45,10.28]
[1748538177714,21.60824141,168.49,168.45,31.88824141]
[1748538177916,21.60824141,168.51,168.46,21.60824141]
[1748538178112,5.9347181,168.5,168.46,21.60824141]
[1748538178316,5.9347181,168.5,168.47,21.60824141]
[1748538179227,27.54295951,168.5,168.45,31.88824141]
[1748538180043,5.9347181,168.5,168.47,35.21921137]
[1748538180218,5.9347181,168.5,168.46,35.21921137]
[1748538180640,41.15392947,168.5,168.46,35.21921137]
[1748538180952,35.21921137,168.47,168.45,10.28]
[1748538181330,35.21921137,168.47,168.43,35.21921137]
[1748538181532,35.21921137,168.48,168.43,35.21921137]
[1748538181744,58.49151335,168.5,168.43,35.21921137]
[1748538181930,35.21921137,168.48,168.43,35.21921137]
[1748538182449,5.93577491,168.47,168.43,35.21921137]
[1748538183148,5.93577491,168.47,168.45,35.21921137]
[1748538183356,5.93507033,168.49,168.45,35.21921137]
[1748538183553,35.21921137,168.48,168.43,35.36137294]
[1748538183936,5.93401376,168.52,168.47,35.21921137]
[1748538184137,43.61295757,168.55,168.49,35.21921137]
[1748538184540,35.21921137,168.51,168.47,35.21921137]
[1748538185551,35.21921137,168.48,168.44,0.14216157]
[1748538185732,35.21921137,168.49,168.44,35.36137294]
[1748538186047,35.21921137,168.5,168.45,35.21921137]
[1748538186225,35.21921137,168.49,168.43,89.7]
[1748538186428,5.93577491,168.47,168.43,35.21921137]
[1748538186628,5.93577491,168.47,168.44,35.21921137]
[1748538186853,5.93577491,168.47,168.45,35.21921137]
[1748538187049,5.93549909,168.48,168.45,35.21921137]
[1748538187246,5.93519387,168.49,168.46,35.21921137]
[1748538187448,43.61401376,168.52,168.46,35.21921137]
[1748538187649,78.83322513,168.52,168.47,35.21921137]
[1748538187854,78.83322513,168.52,168.48,35.21921137]
[1748538188149,41.15322513,168.52,168.48,35.21921137]
[1748538188548,41.15322513,168.52,168.47,35.21921137]
[1748538188737,41.15322513,168.52,168.45,0.42648471]
[1748538188944,35.21921137,168.51,168.46,35.21921137]
[1748538189959,55.98825954,168.52,168.47,35.21921137]
[1748538190160,41.15322513,168.52,168.47,35.21921137]
[1748538190534,41.15322513,168.52,168.48,35.21921137]
[1748538190735,41.15322513,168.52,168.42,10.28]
[1748538190736,35.21921137,168.49,168.42,71.49921137]
[1748538190937,35.21921137,168.46,168.42,10.28]
[1748538191438,35.21921137,168.46,168.4,134.49181043]
[1748538191663,35.21921137,168.46,168.41,35.21921137]
[1748538192247,37.68,168.5,168.44,35.21921137]
[1748538192473,5.93577491,168.47,168.44,35.21921137]
[1748538193269,5.93577491,168.47,168.43,35.21921137]
[1748538194038,35.21921137,168.46,168.41,0.42648471]
[1748538194237,35.21921137,168.46,168.41,35.64569608]
[1748538194678,5.93647966,168.45,168.41,35.50353451]
[1748538194970,41.15569103,168.45,168.4,45.49921137]
[1748538195548,41.15569103,168.45,168.41,35.21921137]
[1748538195870,5.9362524,168.46,168.42,35.21921137]
[1748538196354,41.15546377,168.46,168.41,35.50353451]
[1748538197263,41.15546377,168.46,168.41,35.21921137]
[1748538197264,35.21921137,168.45,168.41,35.21921137]
[1748538197445,35.21921137,168.45,168.4,45.49921137]
[1748538198345,35.21921137,168.45,168.4,135.19921137]
[1748538198548,5.9368321,168.44,168.4,135.19921137]
[1748538199065,35.21921137,168.43,168.4,10.28]
[1748538199271,55.99812373,168.44,168.4,10.28]
[1748538200453,55.99812373,168.44,168.4,45.49921137]
[1748538200668,41.15604347,168.44,168.4,45.49921137]
[1748538200855,35.21921137,168.47,168.42,35.21921137]
[1748538201057,35.21921137,168.47,168.43,35.21921137]
[1748538202172,21.61906795,168.47,168.43,21.61906795]
[1748538202563,5.93577491,168.47,168.43,21.61906795]
[1748538203673,5.93577491,168.47,168.42,21.61906795]
[1748538203869,27.55484286,168.47,168.42,21.61906795]
[1748538204576,5.93647966,168.45,168.41,0.28432314]
[1748538204772,5.93647966,168.45,168.42,21.61906795]
[1748538204959,21.61906795,168.44,168.4,10.28]
[1748538205560,21.61906795,168.44,168.4,31.89906795]
[1748538205879,21.61906795,168.44,168.4,10.28]
[1748538206659,5.93718458,168.43,168.4,10.28]
[1748538208663,14.83924898,168.48,168.41,21.61906795]
[1748538208981,21.61906795,168.46,168.42,21.61906795]
[1748538209282,21.61906795,168.46,168.41,21.61906795]
[1748538210162,21.61906795,168.46,168.41,111.31906795]
[1748538210370,5.9354226,168.48,168.43,21.61906795]
[1748538210552,5.9354226,168.48,168.44,21.61906795]
[1748538210854,153.7237,168.54,168.44,21.61906795]
[1748538210855,14.83351843,168.54,168.47,21.61906795]
[1748538211059,36.45258638,168.54,168.49,21.61906795]
[1748538211270,21.61906795,168.53,168.49,21.61906795]
[1748538211465,14.83351843,168.54,168.49,21.61906795]
[1748538211466,21.61906795,168.54,168.49,21.61906795]
[1748538212460,21.61906795,168.54,168.5,21.61906795]
[1748538212660,27.55202552,168.55,168.5,21.61906795]
[1748538212973,5.93295757,168.55,168.51,21.61906795]
[1748538213278,27.55202552,168.55,168.51,21.61906795]
[1748538213495,27.55202552,168.55,168.49,89.98432314]
[1748538213667,21.61906795,168.55,168.5,21.61906795]
[1748538214055,35.20086507,168.55,168.5,35.20086507]
[1748538214685,41.13417467,168.54,168.5,35.20086507]
[1748538214983,35.20086507,168.51,168.49,89.7]
[1748538215166,5.9333096,168.54,168.48,35.20086507]
[1748538215167,20.7665836,168.54,168.48,35.20086507]
[1748538215368,72.86086507,168.53,168.48,35.20086507]
[1748538216178,72.86086507,168.53,168.49,35.20086507]
[1748538216355,72.86086507,168.53,168.48,35.20086507]
[1748538216557,41.13487883,168.52,168.48,35.20086507]
[1748538216981,41.13487883,168.52,168.47,45.40086507]
[1748538217167,35.20086507,168.51,168.47,45.40086507]
[1748538217883,35.20086507,168.51,168.47,10.2]
[1748538218666,5.9347181,168.5,168.47,10.2]
[1748538219480,41.13558317,168.5,168.47,10.2]
[1748538220194,41.13558317,168.5,168.42,33.80527481]
[1748538220195,35.20086507,168.48,168.42,9.07606157]
[1748538220385,35.20086507,168.47,168.43,35.20086507]
[1748538220771,5.93612727,168.46,168.42,54.33476507]
[1748538220970,5.93612727,168.46,168.43,35.20086507]
[1748538221198,5.93612727,168.46,168.42,19.1339]
[1748538221362,5.93612727,168.46,168.42,54.33476507]
[1748538224308,5.9347181,168.5,168.45,35.20086507]
[1748538224469,5.9347181,168.5,168.48,35.20086507]
[1748538224677,5.9347181,168.5,168.47,35.20086507]
[1748538225701,5.9347181,168.5,168.46,35.20086507]
[1748538225908,41.13558317,168.5,168.46,35.20086507]
[1748538226070,35.20086507,168.48,168.44,124.90086507]
[1748538226272,35.20086507,168.47,168.43,35.20086507]
[1748538226502,35.20086507,168.46,168.42,19.1339]
[1748538226872,35.20086507,168.47,168.42,54.33476507]
[1748538227200,5.93612727,168.46,168.42,54.33476507]
[1748538228006,5.93612727,168.46,168.43,35.20086507]
[1748538231688,50.03955643,168.48,168.43,35.20086507]
[1748538231890,5.93436591,168.51,168.47,35.20086507]
[1748538232102,5.93436591,168.51,168.48,35.20086507]
[1748538232288,30.0,168.49,168.47,35.20086507]
[1748538232705,30.0,168.49,168.46,35.20086507]
[1748538232998,41.13523098,168.51,168.46,35.20086507]
[1748538233975,27.54517138,168.51,168.47,21.61080547]
[1748538234175,5.93436591,168.51,168.47,21.61080547]
[1748538234590,42.38108616,168.51,168.46,21.61080547]
[1748538235204,42.38108616,168.51,168.44,0.14216157]
[1748538235502,21.61080547,168.46,168.42,8.9339]
[1748538235799,5.93647966,168.45,168.42,8.9339]
[1748538236003,5.93647966,168.45,168.42,30.54470547]
[1748538236188,43.59553478,168.48,168.44,21.61080547]
[1748538237878,65.20634025,168.48,168.44,21.61080547]
[1748538238196,43.59553478,168.48,168.44,21.61080547]
[1748538238404,5.93553478,168.48,168.46,21.61080547]
[1748538239401,5.9347181,168.5,168.46,21.61080547]
[1748538239801,27.54552357,168.5,168.46,21.61080547]
[1748538240705,27.54552357,168.5,168.45,21.61080547]
[1748538240890,21.61080547,168.49,168.45,21.61080547]
[1748538241899,27.54622807,168.48,168.43,89.84216157]
[1748538242096,27.54622807,168.48,168.43,111.45296704]
[1748538242398,27.54622807,168.48,168.43,111.31080547]
[1748538242399,21.61080547,168.47,168.43,111.31080547]
[1748538242706,21.61080547,168.47,168.43,89.7]
[1748538242906,21.61080547,168.44,168.37,8.674]
[1748538243109,21.61080547,168.42,168.37,18.854]
[1748538243407,21.61080547,168.42,168.38,21.61080547]
[1748538243787,5.93718458,168.43,168.39,21.61080547]
[1748538244398,27.54799005,168.43,168.39,21.61080547]
[1748538244797,27.54799005,168.43,168.38,21.61080547]
[1748538245390,42.39095151,168.43,168.38,21.61080547]
[1748538245788,5.93788967,168.41,168.37,40.46480547]
[1748538246184,5.93788967,168.41,168.38,21.61080547]
[1748538247483,5.93788967,168.41,168.33,2.6029]
[1748538247484,21.61080547,168.39,168.33,2.6029]
[1748538247683,21.61080547,168.35,168.31,21.61080547]
[1748538248004,5.94035879,168.34,168.31,21.61080547]
[1748538248599,21.61080547,168.36,168.31,21.61080547]
[1748538248808,5.93859492,168.39,168.34,21.61080547]
[1748538248990,27.54940039,168.39,168.34,21.61080547]
[1748538249191,27.54940039,168.39,168.31,108.49181043]
[1748538249192,21.61080547,168.35,168.32,0.14216157]
[1748538249395,21.61080547,168.34,168.29,38.21780547]
[1748538249616,21.61080547,168.32,168.29,16.607]
[1748538250030,5.94122943,168.32,168.29,16.607]
[1748538250195,21.61080547,168.31,168.29,10.18]
[1748538250396,21.61080547,168.31,168.25,6.427]
[1748538250591,21.61080547,168.3,168.25,54.03780547]
[1748538250891,21.61080547,168.31,168.26,21.61080547]
[1748538251394,5.94177064,168.3,168.26,21.61080547]
[1748538251614,27.55206966,168.32,168.25,12.3705182]
[1748538251812,21.61080547,168.3,168.26,0.28432314]
[1748538252020,35.30324484,168.3,168.26,35.44540641]
[1748538252996,10.0,168.43,168.29,35.30324484]
[1748538253193,10.0,168.43,168.28,18.79181043]
[1748538253194,35.30324484,168.35,168.3,35.30324484]
[1748538253415,35.30324484,168.34,168.29,35.30324484]
[1748538254617,5.93965312,168.36,168.29,35.30324484]
[1748538254816,35.30324484,168.34,168.29,35.30324484]
[1748538255918,5.94071169,168.33,168.29,35.30324484]
[1748538256623,5.94071169,168.33,168.3,35.30324484]
[1748538257005,5.94035879,168.34,168.3,35.30324484]
[1748538257414,5.94035879,168.34,168.3,125.00324484]
[1748538258004,41.24360363,168.34,168.3,89.7]
[1748538258508,41.24360363,168.34,168.3,125.00324484]
[1748538259329,5.94011867,168.35,168.32,35.30324484]
[1748538259631,5.94011867,168.35,168.33,35.30324484]
[1748538260601,5.93930035,168.37,168.33,35.30324484]
[1748538261212,41.24254519,168.37,168.3,99.9]
[1748538261612,41.24254519,168.37,168.32,35.30324484]
[1748538262108,35.30324484,168.36,168.32,35.30324484]
[1748538262726,41.24254519,168.37,168.33,35.30324484]
[1748538263031,41.24254519,168.37,168.32,35.30324484]
[1748538263531,41.24254519,168.37,168.32,125.00324484]
[1748538263532,5.93930035,168.37,168.32,125.00324484]
[1748538263732,5.93930035,168.37,168.33,35.30324484]
[1748538263933,41.24254519,168.37,168.33,35.30324484]
[1748538264635,52.50761857,168.38,168.36,35.30324484]
[1748538264636,5.93907281,168.38,168.36,35.30324484]
[1748538264824,5.93824228,168.4,168.37,35.30324484]
[1748538265015,37.66,168.42,168.39,35.30324484]
[1748538265336,41.24042942,168.43,168.4,35.30324484]
[1748538265337,5.93718458,168.43,168.4,35.30324484]
[1748538266106,5.93718458,168.43,168.42,35.30324484]
[1748538266317,5.93612727,168.46,168.42,35.30324484]
[1748538266641,33.17645399,168.5,168.42,35.30324484]
[1748538266642,5.93507033,168.49,168.45,35.30324484]
[1748538266826,5.93507033,168.49,168.42,89.7]
[1748538266827,5.93507033,168.49,168.47,35.30324484]
[1748538267141,5.93507033,168.49,168.43,0.14216157]
[1748538267142,5.93507033,168.49,168.44,0.14216157]
[1748538267342,41.23831517,168.49,168.42,106.1748]
[1748538267505,35.30324484,168.47,168.43,35.30324484]
[1748538267707,35.30324484,168.48,168.43,35.30324484]
[1748538268145,5.93577491,168.47,168.43,35.30324484]
[1748538268311,5.93577491,168.47,168.45,35.30324484]
[1748538268807,5.93577491,168.47,168.43,0.28432314]
[1748538269305,5.93577491,168.47,168.44,35.30324484]
[1748538270334,35.30324484,168.49,168.42,106.1748]
[1748538270335,20.7739791,168.48,168.42,106.1748]
[1748538270513,35.30324484,168.46,168.42,99.88]
[1748538270928,35.30324484,168.46,168.42,135.18324484]
[1748538271947,35.30324484,168.46,168.42,99.88]
[1748538272251,5.93647966,168.45,168.42,135.18324484]
[1748538273108,5.9354226,168.48,168.44,35.30324484]
[1748538273314,5.9354226,168.48,168.47,35.30324484]
[1748538274540,56.07352553,168.51,168.47,35.30324484]
[1748538275253,56.07352553,168.51,168.46,35.30324484]
[1748538275622,93.71352553,168.51,168.46,35.30324484]
[1748538276047,35.30324484,168.5,168.44,89.7]
[1748538276354,35.30324484,168.48,168.44,125.00324484]
[1748538276518,35.30324484,168.47,168.44,89.7]
[1748538276709,37.62,168.48,168.42,10.18]
[1748538276914,35.30324484,168.46,168.42,10.18]
[1748538277219,72.92324484,168.48,168.43,35.30324484]
[1748538277525,35.30324484,168.46,168.42,10.18]
[1748538277721,35.30324484,168.44,168.39,35.30324484]
[1748538277926,5.93718458,168.43,168.39,35.30324484]
[1748538279339,5.93718458,168.43,168.41,35.30324484]
[1748538279545,5.93694206,168.44,168.42,35.30324484]
[1748538279732,5.93694206,168.44,168.43,35.30324484]
[1748538280839,5.93694206,168.44,168.42,35.30324484]
[1748538281043,5.93694206,168.44,168.4,35.30324484]
[1748538281645,20.77902232,168.44,168.4,35.30324484]
[1748538283128,56.08226716,168.44,168.39,125.00324484]
[1748538283525,82.08226716,168.44,168.39,89.7]
[1748538283724,35.30324484,168.42,168.39,89.7]
[1748538283918,35.30324484,168.4,168.38,89.7]
[1748538284251,21.6416783,168.39,168.35,89.7]
[1748538284432,21.6416783,168.39,168.34,113.1484783]
[1748538284631,21.6416783,168.39,168.35,21.6416783]
[1748538284946,5.93894761,168.38,168.35,21.6416783]
[1748538286041,5.93894761,168.38,168.35,35.26815129]
[1748538286227,56.05446794,168.38,168.33,35.26815129]
[1748538286653,5.93894761,168.38,168.33,0.28432314]
[1748538286962,5.93894761,168.38,168.35,35.26815129]
[1748538287159,35.26815129,168.36,168.3,41.29785129]
[1748538287472,35.26815129,168.34,168.3,41.29785129]
[1748538288026,35.26815129,168.32,168.29,10.18]
[1748538288236,35.26815129,168.33,168.29,10.18]
[1748538288458,35.26815129,168.33,168.29,45.44815129]
[1748538289449,5.94106463,168.32,168.29,45.44815129]
[1748538289854,5.94106463,168.32,168.29,10.18]
[1748538291649,5.94106463,168.32,168.29,45.44815129]
[1748538293264,37.62,168.36,168.29,45.44815129]
[1748538293265,37.62,168.36,168.3,35.26815129]
[1748538293471,72.88815129,168.36,168.32,35.26815129]
[1748538293757,5.93930035,168.37,168.34,35.26815129]
[1748538293958,5.93824228,168.4,168.36,35.26815129]
[1748538294177,35.26815129,168.37,168.33,6.26]
[1748538294352,35.26815129,168.37,168.33,41.52815129]
[1748538294734,35.26815129,168.38,168.33,41.52815129]
[1748538295193,41.20745164,168.37,168.33,41.52815129]
[1748538295357,35.26815129,168.36,168.31,35.26815129]
[1748538296232,56.05570251,168.37,168.33,35.26815129]
[1748538296434,5.93930035,168.37,168.34,35.26815129]
[1748538296742,5.93930035,168.37,168.35,35.26815129]
[1748538297353,5.93894761,168.38,168.35,35.26815129]
[1748538298658,5.93894761,168.38,168.36,35.26815129]
[1748538299341,20.78421481,168.4,168.36,35.26815129]
[1748538300552,56.0523661,168.4,168.36,35.26815129]
[1748538301366,41.20639357,168.4,168.36,35.26815129]
[1748538301541,5.93824228,168.4,168.38,35.26815129]
[1748538301861,5.93824228,168.4,168.37,35.26815129]
[1748538302051,5.93824228,168.4,168.36,35.26815129]
[1748538303552,5.93824228,168.4,168.37,35.26815129]
[1748538303761,5.93824228,168.4,168.35,102.4561]
[1748538303960,5.93824228,168.4,168.38,35.26815129]
[1748538304175,41.20463095,168.45,168.39,35.26815129]
[1748538304475,43.55647966,168.45,168.41,35.26815129]
[1748538304642,35.26815129,168.44,168.4,35.26815129]
[1748538304957,35.26815129,168.41,168.37,6.4068]
[1748538305348,5.93859492,168.39,168.35,48.02425129]
[1748538305566,41.20674621,168.39,168.35,48.02425129]
[1748538306346,5.93859492,168.39,168.35,48.02425129]
[1748538307065,20.78508224,168.39,168.35,48.02425129]
[1748538307273,56.05323353,168.39,168.35,12.7561]
[1748538307571,35.26815129,168.38,168.35,10.16]
[1748538307965,42.42729286,168.39,168.35,31.80221062]
[1748538312154,21.64221062,168.38,168.35,10.16]
[1748538312877,5.93930035,168.37,168.35,10.16]
[1748538313374,27.58151097,168.37,168.35,10.16]
[1748538313876,5.93930035,168.37,168.35,10.16]
[1748538314652,5.93930035,168.37,168.35,31.80221062]
[1748538314956,5.93894761,168.38,168.35,31.80221062]
[1748538316079,42.42852727,168.38,168.35,10.16]
[1748538316678,42.42852727,168.38,168.35,99.86]
[1748538317592,21.64221062,168.37,168.35,89.7]
[1748538317765,21.64221062,168.36,168.35,89.7]
[1748538317968,21.64221062,168.36,168.32,89.7]
[1748538318290,21.64221062,168.35,168.32,89.7]
[1748538318465,21.64221062,168.36,168.32,89.7]
[1748538318982,5.94000594,168.35,168.32,89.7]
[1748538319361,5.93968185,168.36,168.34,21.64221062]
[1748538319763,5.93968185,168.36,168.33,21.64221062]
[1748538320183,5.93968185,168.36,168.32,111.34221062]
[1748538320688,5.93968185,168.36,168.33,21.64221062]
[1748538320886,5.93968185,168.36,168.34,21.64221062]
[1748538322093,5.93956123,168.37,168.35,21.64221062]
[1748538322683,5.93956123,168.37,168.35,111.34221062]
[1748538322991,5.93718458,168.43,168.36,21.64221062]
[1748538323190,5.93718458,168.43,168.41,21.64221062]
[1748538323372,5.93647966,168.45,168.42,21.64221062]
[1748538323584,5.93647966,168.45,168.43,21.64221062]
[1748538323764,5.93647966,168.45,168.42,21.64221062]
[1748538324590,5.93647966,168.45,168.43,21.64221062]
[1748538325063,5.93647966,168.45,168.42,21.64221062]
[1748538325478,74.06238144,168.47,168.42,21.64221062]
[1748538325479,5.93612727,168.46,168.42,21.64221062]
[1748538326065,5.93612727,168.46,168.43,21.64221062]
[1748538326494,5.93612727,168.46,168.44,21.64221062]
[1748538326678,5.93612727,168.46,168.45,21.64221062]
[1748538327390,5.93507033,168.49,168.45,21.64221062]
[1748538327991,5.93507033,168.49,168.46,21.64221062]
[1748538328782,5.93507033,168.49,168.45,21.64221062]
[1748538329086,21.64221062,168.48,168.43,0.28432314]
[1748538329294,21.64221062,168.48,168.44,21.64221062]
[1748538329501,5.93577491,168.47,168.44,21.64221062]
[1748538330306,5.93577491,168.47,168.45,21.64221062]
[1748538330768,5.93507033,168.49,168.46,21.64221062]
[1748538330969,26.0,168.53,168.42,10.14]
[1748538330970,5.93366166,168.53,168.48,21.64221062]
[1748538331201,5.93366166,168.53,168.5,21.64221062]
[1748538331577,74.03506094,168.55,168.5,21.64221062]
[1748538331578,5.9333096,168.54,168.5,21.64221062]
[1748538331970,20.7665836,168.54,168.49,21.64221062]
[1748538332172,42.40879422,168.54,168.49,21.64221062]
[1748538332386,5.9333096,168.54,168.51,21.64221062]
[1748538334591,5.9333096,168.54,168.5,21.64221062]
[1748538334903,20.7665836,168.54,168.5,21.64221062]
[1748538335304,21.64221062,168.53,168.48,31.78221062]
[1748538335677,21.64221062,168.51,168.46,0.28432314]
[1748538335879,21.64221062,168.5,168.45,2.7362]
[1748538336091,21.64221062,168.5,168.46,21.64221062]
[1748538336611,21.64221062,168.51,168.46,21.64221062]
[1748538336776,21.64221062,168.5,168.45,24.37841062]
[1748538336978,5.93366166,168.53,168.45,21.64221062]
[1748538336979,21.64221062,168.49,168.45,21.64221062]
[1748538337180,21.64221062,168.48,168.44,21.64221062]
[1748538337780,21.64221062,168.48,168.43,31.78221062]
[1748538338089,21.64221062,168.48,168.44,21.64221062]
[1748538338481,21.64221062,168.47,168.43,31.78221062]
[1748538338724,20.77644544,168.46,168.43,10.14]
[1748538339100,20.77644544,168.46,168.43,31.78221062]
[1748538340031,20.77644544,168.46,168.45,21.64221062]
[1748538340032,5.93612727,168.46,168.45,21.64221062]
[1748538340392,20.77644544,168.46,168.43,10.14]
[1748538340627,42.41865606,168.46,168.43,10.14]
[1748538340786,20.77644544,168.46,168.43,31.78221062]
[1748538340983,5.93612727,168.46,168.43,31.78221062]
[1748538341216,5.93612727,168.46,168.44,21.64221062]
[1748538341416,5.93612727,168.46,168.43,31.78221062]
[1748538341604,5.93612727,168.46,168.44,21.64221062]
[1748538341808,5.93612727,168.46,168.45,21.64221062]
[1748538342210,5.93612727,168.46,168.44,21.64221062]
[1748538342921,5.93577491,168.47,168.44,21.64221062]
[1748538343295,5.93577491,168.47,168.44,111.34221062]
[1748538343802,5.9347181,168.5,168.46,21.64221062]
[1748538344309,20.77151335,168.5,168.46,21.64221062]
[1748538344525,42.41372397,168.5,168.46,21.64221062]